[Event "Titled Tuesday Blitz December 20 Early 2022"]
[White "Lion-Al-Messi"]
[Black "FaustinoOro"]
[WhiteElo "2520"]
[BlackElo "2633"]
[Result "1-0"]
[Round "10"]
[TimeControl "180+2"]
[Date "2022.12.20"]
[WhiteClock "0:01:57"]
[BlackClock "0:00:01"]

1. e4 {[%clk 0:02:59]}  e5 {[%clk 0:02:57]} 2. Nf3 {[%clk 0:02:59]}  Nc6 {[%clk 0:02:57]} 3. Bb5 {[%clk 0:02:59]}  Nf6 {[%clk 0:02:53]} 4. O-O {[%clk 0:02:59]}  Nxe4 {[%clk 0:02:53]} 5. d4 {[%clk 0:02:58]}  Nd6 {[%clk 0:02:49]} 6. Bxc6 {[%clk 0:02:59]}  dxc6 {[%clk 0:02:50]} 7. dxe5 {[%clk 0:02:59]}  Nf5 {[%clk 0:02:50]} 8. Qxd8+ {[%clk 0:03:00]}  Kxd8 {[%clk 0:02:51]} 9. Nc3 {[%clk 0:03:00]}  Bb4 {[%clk 0:02:49]} 10. Ne4 {[%clk 0:02:59]}  Ke8 {[%clk 0:02:45]} 11. a3 {[%clk 0:02:56]}  Be7 {[%clk 0:02:32]} 12. Bg5 {[%clk 0:02:55]}  h6 {[%clk 0:02:29]} 13. Bxe7 {[%clk 0:02:55]}  Nxe7 {[%clk 0:02:30]} 14. Rad1 {[%clk 0:02:55]}  Bf5 {[%clk 0:02:29]} 15. Rfe1 {[%clk 0:02:54]}  b6 {[%clk 0:02:27]} 16. h3 {[%clk 0:02:53]}  Nd5 {[%clk 0:02:10]} 17. g4 {[%clk 0:02:51]}  Bg6 {[%clk 0:02:04]} 18. c4 {[%clk 0:02:51]}  Nf4 {[%clk 0:02:04]} 19. Kh2 {[%clk 0:02:52]}  Ke7 {[%clk 0:02:02]} 20. Kg3 {[%clk 0:02:52]}  Ne6 {[%clk 0:02:02]} 21. Nh4 {[%clk 0:02:50]}  Rhd8 {[%clk 0:01:36]} 22. Nf5+ {[%clk 0:02:45]}  Kf8 {[%clk 0:01:36]} 23. f4 {[%clk 0:02:37]}  c5 {[%clk 0:01:24]} 24. h4 {[%clk 0:02:31]}  Bxf5 {[%clk 0:01:23]} 25. gxf5 {[%clk 0:02:31]}  Nd4 {[%clk 0:01:24]} 26. f6 {[%clk 0:02:31]}  Nf5+ {[%clk 0:01:18]} 27. Kh3 {[%clk 0:02:30]}  Rd4 {[%clk 0:01:09]} 28. Rxd4 {[%clk 0:02:28]}  Nxd4 {[%clk 0:01:09]} 29. fxg7+ {[%clk 0:02:26]}  Kxg7 {[%clk 0:01:09]} 30. Rg1+ {[%clk 0:02:26]}  Kf8 {[%clk 0:01:08]} 31. Nf6 {[%clk 0:02:26]}  Ke7 {[%clk 0:01:04]} 32. Rg8 {[%clk 0:02:25]}  Rd8 {[%clk 0:00:42]} 33. Nd5+ {[%clk 0:02:21]}  Kd7 {[%clk 0:00:42]} 34. Nf6+ {[%clk 0:02:14]}  Kc8 {[%clk 0:00:41]} 35. Rxd8+ {[%clk 0:02:15]}  Kxd8 {[%clk 0:00:42]} 36. Ng8 {[%clk 0:02:11]}  Ne2 {[%clk 0:00:42]} 37. Kg4 {[%clk 0:02:10]}  h5+ {[%clk 0:00:41]} 38. Kf3 {[%clk 0:02:04]}  Nd4+ {[%clk 0:00:40]} 39. Ke4 {[%clk 0:02:03]}  Kd7 {[%clk 0:00:33]} 40. Nf6+ {[%clk 0:02:03]}  Ke6 {[%clk 0:00:33]} 41. Nxh5 {[%clk 0:02:04]}  Nf5 {[%clk 0:00:31]} 42. Nf6 {[%clk 0:02:03]}  Nxh4 {[%clk 0:00:31]} 43. Nd5 {[%clk 0:01:59]}  Kd7 {[%clk 0:00:30]} 44. f5 {[%clk 0:01:55]}  c6 {[%clk 0:00:29]} 45. Ne3 {[%clk 0:01:54]}  Ke7 {[%clk 0:00:17]} 46. Kf4 {[%clk 0:01:53]}  f6 {[%clk 0:00:11]} 47. Kg4 {[%clk 0:01:53]}  Nxf5 {[%clk 0:00:09]} 48. Kxf5 {[%clk 0:01:53]}  fxe5 {[%clk 0:00:09]} 49. Kxe5 {[%clk 0:01:54]}  Kd7 {[%clk 0:00:10]} 50. Nf5 {[%clk 0:01:54]}  b5 {[%clk 0:00:07]} 51. b3 {[%clk 0:01:55]}  a5 {[%clk 0:00:06]} 52. a4 {[%clk 0:01:55]}  bxc4 {[%clk 0:00:02]} 53. bxc4 {[%clk 0:01:56]}  Kc7 {[%clk 0:00:02]} 54. Ke6 {[%clk 0:01:56]}  Kb7 {[%clk 0:00:01]} 55. Kd7 {[%clk 0:01:57]} 1-0


[Site "https://www.chess.com"]

[Event "Titled Tuesday Blitz December 20 Early 2022"]
[White "Makswolf200817"]
[Black "Alexander_Donchenko"]
[WhiteElo "2651"]
[BlackElo "2812"]
[Result "0-1"]
[Round "10"]
[TimeControl "180+2"]
[Date "2022.12.20"]
[WhiteClock "0:00:27"]
[BlackClock "0:00:49"]

1. d4 {[%clk 0:03:00]}  d5 {[%clk 0:03:00]} 2. c4 {[%clk 0:03:00]}  dxc4 {[%clk 0:03:01]} 3. e3 {[%clk 0:02:59]}  e6 {[%clk 0:03:01]} 4. Bxc4 {[%clk 0:02:59]}  c5 {[%clk 0:03:01]} 5. Nf3 {[%clk 0:02:58]}  Nf6 {[%clk 0:03:02]} 6. O-O {[%clk 0:02:58]}  a6 {[%clk 0:03:03]} 7. Nbd2 {[%clk 0:02:57]}  Nc6 {[%clk 0:03:01]} 8. dxc5 {[%clk 0:02:53]}  Bxc5 {[%clk 0:03:02]} 9. a3 {[%clk 0:02:53]}  Bd6 {[%clk 0:03:01]} 10. b4 {[%clk 0:02:52]}  Ne5 {[%clk 0:03:01]} 11. Be2 {[%clk 0:02:50]}  O-O {[%clk 0:02:59]} 12. Bb2 {[%clk 0:02:50]}  Nxf3+ {[%clk 0:02:55]} 13. Bxf3 {[%clk 0:02:39]}  Qe7 {[%clk 0:02:50]} 14. Nc4 {[%clk 0:02:37]}  Bc7 {[%clk 0:02:50]} 15. Rc1 {[%clk 0:02:36]}  Rd8 {[%clk 0:02:47]} 16. Qb3 {[%clk 0:02:32]}  Rb8 {[%clk 0:02:42]} 17. Ne5 {[%clk 0:02:28]}  Bd6 {[%clk 0:02:35]} 18. Rfd1 {[%clk 0:02:25]}  Bd7 {[%clk 0:02:34]} 19. Nxd7 {[%clk 0:02:11]}  Rxd7 {[%clk 0:02:32]} 20. g3 {[%clk 0:02:09]}  Rbd8 {[%clk 0:02:30]} 21. Kg2 {[%clk 0:02:09]}  h6 {[%clk 0:02:29]} 22. Rc2 {[%clk 0:02:03]}  Bb8 {[%clk 0:02:26]} 23. Rcc1 {[%clk 0:01:54]}  Nd5 {[%clk 0:02:21]} 24. Qc4 {[%clk 0:01:44]}  b5 {[%clk 0:02:16]} 25. Qg4 {[%clk 0:01:43]}  e5 {[%clk 0:02:07]} 26. Rxd5 {[%clk 0:01:17]}  Rxd5 {[%clk 0:02:08]} 27. Bxd5 {[%clk 0:01:18]}  Rxd5 {[%clk 0:02:08]} 28. Qc8+ {[%clk 0:01:18]}  Rd8 {[%clk 0:02:05]} 29. Qxa6 {[%clk 0:01:18]}  Qd7 {[%clk 0:02:05]} 30. Qc6 {[%clk 0:01:11]}  Qd3 {[%clk 0:01:53]} 31. Qc2 {[%clk 0:01:02]}  Qd5+ {[%clk 0:01:43]} 32. Kg1 {[%clk 0:01:01]}  h5 {[%clk 0:01:25]} 33. Qe2 {[%clk 0:01:00]}  h4 {[%clk 0:01:05]} 34. Rc5 {[%clk 0:00:59]}  Qe4 {[%clk 0:01:02]} 35. f3 {[%clk 0:00:46]}  Qb1+ {[%clk 0:00:58]} 36. Rc1 {[%clk 0:00:46]}  Qa2 {[%clk 0:00:58]} 37. Kg2 {[%clk 0:00:41]}  Ba7 {[%clk 0:00:55]} 38. Rc2 {[%clk 0:00:37]}  Qb3 {[%clk 0:00:52]} 39. Bxe5 {[%clk 0:00:33]}  h3+ {[%clk 0:00:49]} 40. Kf2 {[%clk 0:00:27]}  Bxe3+ {[%clk 0:00:49]} 0-1


[Site "https://www.chess.com"]

[Event "Titled Tuesday Blitz December 20 Early 2022"]
[White "Meri-Arabidze"]
[Black "MartinMatthiesen"]
[WhiteElo "2730"]
[BlackElo "2497"]
[Result "1-0"]
[Round "10"]
[TimeControl "180+2"]
[Date "2022.12.20"]
[WhiteClock "0:00:19"]
[BlackClock "0:00:15"]

1. c4 {[%clk 0:03:00]}  e5 {[%clk 0:02:54]} 2. Nc3 {[%clk 0:03:01]}  Nf6 {[%clk 0:02:51]} 3. g3 {[%clk 0:03:01]}  d5 {[%clk 0:02:41]} 4. cxd5 {[%clk 0:03:02]}  Nxd5 {[%clk 0:02:41]} 5. Bg2 {[%clk 0:03:03]}  Nb6 {[%clk 0:02:38]} 6. Nf3 {[%clk 0:03:03]}  Nc6 {[%clk 0:02:37]} 7. O-O {[%clk 0:03:03]}  Be7 {[%clk 0:02:35]} 8. d3 {[%clk 0:03:04]}  O-O {[%clk 0:02:34]} 9. a3 {[%clk 0:03:04]}  Be6 {[%clk 0:02:29]} 10. b4 {[%clk 0:03:04]}  a6 {[%clk 0:02:15]} 11. Bb2 {[%clk 0:03:03]}  f6 {[%clk 0:02:12]} 12. Ne4 {[%clk 0:03:03]}  Rf7 {[%clk 0:02:05]} 13. Rc1 {[%clk 0:03:02]}  Bf8 {[%clk 0:02:04]} 14. Nc5 {[%clk 0:03:01]}  Bxc5 {[%clk 0:02:02]} 15. Rxc5 {[%clk 0:03:00]}  Rd7 {[%clk 0:01:58]} 16. Nd2 {[%clk 0:02:54]}  Bd5 {[%clk 0:01:56]} 17. Bh3 {[%clk 0:02:44]}  Rd6 {[%clk 0:01:53]} 18. Qc2 {[%clk 0:02:36]}  Kh8 {[%clk 0:01:38]} 19. Rc1 {[%clk 0:01:51]}  Nd7 {[%clk 0:01:31]} 20. Rxd5 {[%clk 0:01:42]}  Rxd5 {[%clk 0:01:31]} 21. Bg2 {[%clk 0:01:41]}  Rd6 {[%clk 0:01:29]} 22. Nc4 {[%clk 0:01:30]}  Re6 {[%clk 0:01:09]} 23. Bd5 {[%clk 0:01:30]}  Re8 {[%clk 0:01:09]} 24. Bxc6 {[%clk 0:01:30]}  bxc6 {[%clk 0:01:09]} 25. Na5 {[%clk 0:01:31]}  Nf8 {[%clk 0:01:05]} 26. Nxc6 {[%clk 0:01:31]}  Qd7 {[%clk 0:01:04]} 27. e3 {[%clk 0:01:18]}  Ne6 {[%clk 0:01:03]} 28. h4 {[%clk 0:01:18]}  g5 {[%clk 0:00:59]} 29. hxg5 {[%clk 0:01:10]}  Nxg5 {[%clk 0:00:59]} 30. Qe2 {[%clk 0:01:07]}  Qh3 {[%clk 0:00:49]} 31. Rc4 {[%clk 0:01:07]}  Rg8 {[%clk 0:00:45]} 32. Ne7 {[%clk 0:00:58]}  Rg7 {[%clk 0:00:43]} 33. Nd5 {[%clk 0:00:57]}  Rag8 {[%clk 0:00:36]} 34. Nxf6 {[%clk 0:00:32]}  Nf3+ {[%clk 0:00:26]} 35. Qxf3 {[%clk 0:00:32]}  Rxg3+ {[%clk 0:00:27]} 36. fxg3 {[%clk 0:00:33]}  Rxg3+ {[%clk 0:00:27]} 37. Qxg3 {[%clk 0:00:33]}  Qxg3+ {[%clk 0:00:28]} 38. Kh1 {[%clk 0:00:31]}  Qf3+ {[%clk 0:00:20]} 39. Kh2 {[%clk 0:00:31]}  Qf2+ {[%clk 0:00:19]} 40. Kh3 {[%clk 0:00:27]}  Qf3+ {[%clk 0:00:19]} 41. Kh2 {[%clk 0:00:26]}  Qe2+ {[%clk 0:00:18]} 42. Kg3 {[%clk 0:00:24]}  Qxe3+ {[%clk 0:00:18]} 43. Kg4 {[%clk 0:00:22]}  Qe2+ {[%clk 0:00:16]} 44. Kf5 {[%clk 0:00:20]}  Qxb2 {[%clk 0:00:16]} 45. Rxc7 {[%clk 0:00:20]}  Qf2+ {[%clk 0:00:15]} 46. Ke6 {[%clk 0:00:19]} 1-0


[Site "https://www.chess.com"]

[Event "Titled Tuesday Blitz December 20 Early 2022"]
[White "Misanik, Peter"]
[Black "alexrustemov"]
[WhiteFideId "14921421"]
[WhiteElo "1785"]
[BlackElo "2891"]
[Result "1-0"]
[Round "10"]
[TimeControl "180+2"]
[Date "2022.12.20"]
[WhiteClock "0:01:01"]
[BlackClock "0:00:01"]

1. d4 {[%clk 0:03:00]}  d5 {[%clk 0:02:56]} 2. c4 {[%clk 0:03:00]}  e6 {[%clk 0:02:54]} 3. Nc3 {[%clk 0:03:01]}  Be7 {[%clk 0:02:52]} 4. cxd5 {[%clk 0:03:00]}  exd5 {[%clk 0:02:52]} 5. Bf4 {[%clk 0:03:01]}  c6 {[%clk 0:02:52]} 6. e3 {[%clk 0:03:01]}  Bd6 {[%clk 0:02:52]} 7. Bxd6 {[%clk 0:03:00]}  Qxd6 {[%clk 0:02:53]} 8. Bd3 {[%clk 0:03:00]}  Nf6 {[%clk 0:02:48]} 9. Nge2 {[%clk 0:02:55]}  O-O {[%clk 0:02:48]} 10. O-O {[%clk 0:02:55]}  Nbd7 {[%clk 0:02:48]} 11. f3 {[%clk 0:02:55]}  c5 {[%clk 0:02:44]} 12. Qd2 {[%clk 0:02:51]}  a6 {[%clk 0:02:42]} 13. b3 {[%clk 0:02:50]}  b6 {[%clk 0:02:40]} 14. Rad1 {[%clk 0:02:45]}  Bb7 {[%clk 0:02:39]} 15. Ng3 {[%clk 0:02:43]}  g6 {[%clk 0:02:37]} 16. Bb1 {[%clk 0:02:42]}  Rfe8 {[%clk 0:02:36]} 17. Rfe1 {[%clk 0:02:41]}  Rac8 {[%clk 0:02:35]} 18. dxc5 {[%clk 0:02:39]}  Qxc5 {[%clk 0:02:25]} 19. Na4 {[%clk 0:02:37]}  Qe7 {[%clk 0:02:21]} 20. Qd4 {[%clk 0:02:37]}  b5 {[%clk 0:02:19]} 21. Nb2 {[%clk 0:02:37]}  b4 {[%clk 0:02:04]} 22. Nd3 {[%clk 0:02:33]}  a5 {[%clk 0:02:04]} 23. Qa7 {[%clk 0:02:33]}  Nc5 {[%clk 0:01:53]} 24. Qxa5 {[%clk 0:02:22]}  Nxd3 {[%clk 0:01:48]} 25. Rxd3 {[%clk 0:02:22]}  Ra8 {[%clk 0:01:42]} 26. Qb6 {[%clk 0:02:22]}  Rec8 {[%clk 0:01:29]} 27. Qd4 {[%clk 0:02:21]}  Ra6 {[%clk 0:01:19]} 28. h4 {[%clk 0:02:19]}  Rac6 {[%clk 0:01:16]} 29. h5 {[%clk 0:02:15]}  Rc1 {[%clk 0:01:12]} 30. Rdd1 {[%clk 0:02:16]}  R1c3 {[%clk 0:01:06]} 31. Qf4 {[%clk 0:01:56]}  Kg7 {[%clk 0:01:02]} 32. h6+ {[%clk 0:01:35]}  Kf8 {[%clk 0:00:59]} 33. Qd4 {[%clk 0:01:34]}  R8c6 {[%clk 0:00:54]} 34. Kf2 {[%clk 0:01:32]}  Qc5 {[%clk 0:00:54]} 35. Ne2 {[%clk 0:01:27]}  Qxd4 {[%clk 0:00:52]} 36. Rxd4 {[%clk 0:01:25]}  R3c5 {[%clk 0:00:46]} 37. Rxb4 {[%clk 0:01:26]}  Bc8 {[%clk 0:00:42]} 38. Nd4 {[%clk 0:01:25]}  Rc7 {[%clk 0:00:42]} 39. Rb8 {[%clk 0:01:25]}  Ke7 {[%clk 0:00:42]} 40. a4 {[%clk 0:01:18]}  Bd7 {[%clk 0:00:31]} 41. b4 {[%clk 0:01:17]}  Rc4 {[%clk 0:00:31]} 42. a5 {[%clk 0:01:17]}  Rc3 {[%clk 0:00:22]} 43. a6 {[%clk 0:01:15]}  Ra3 {[%clk 0:00:21]} 44. b5 {[%clk 0:01:15]}  Rc4 {[%clk 0:00:18]} 45. Rb7 {[%clk 0:01:13]}  Kd6 {[%clk 0:00:17]} 46. Rb6+ {[%clk 0:01:11]}  Ke7 {[%clk 0:00:16]} 47. Re2 {[%clk 0:01:09]}  Rb4 {[%clk 0:00:16]} 48. Nc2 {[%clk 0:01:05]}  Rxa6 {[%clk 0:00:11]} 49. Rxa6 {[%clk 0:01:04]}  Rxb1 {[%clk 0:00:11]} 50. Nd4 {[%clk 0:01:03]}  Bxb5 {[%clk 0:00:10]} 51. Ra7+ {[%clk 0:01:03]}  Kf8 {[%clk 0:00:10]} 52. Rb7 {[%clk 0:00:59]}  Bxe2 {[%clk 0:00:05]} 53. Rxb1 {[%clk 0:01:00]}  Bc4 {[%clk 0:00:04]} 54. Rb8+ {[%clk 0:01:00]}  Ke7 {[%clk 0:00:05]} 55. g4 {[%clk 0:01:01]}  Ne8 {[%clk 0:00:03]} 56. g5 {[%clk 0:01:00]}  Bd3 {[%clk 0:00:01]} 57. Nc6+ {[%clk 0:01:00]}  Kd7 {[%clk 0:00:01]} 58. Ne5+ {[%clk 0:01:00]}  Ke7 {[%clk 0:00:01]} 59. Nxd3 {[%clk 0:01:01]} 1-0


[Site "https://www.chess.com"]

[Event "Titled Tuesday Blitz December 20 Early 2022"]
[White "MusicCityMaster"]
[Black "Tarno, Brian"]
[BlackFideId "10833820"]
[WhiteElo "2329"]
[BlackElo "2169"]
[Result "1/2-1/2"]
[Round "10"]
[TimeControl "180+2"]
[Date "2022.12.20"]
[WhiteClock "0:00:03"]
[BlackClock "0:00:03"]

1. d4 {[%clk 0:03:00]}  d5 {[%clk 0:03:00]} 2. c4 {[%clk 0:03:00]}  c6 {[%clk 0:02:58]} 3. Nf3 {[%clk 0:03:00]}  Nf6 {[%clk 0:02:57]} 4. e3 {[%clk 0:02:59]}  Bf5 {[%clk 0:02:57]} 5. Nc3 {[%clk 0:02:58]}  e6 {[%clk 0:02:56]} 6. Nh4 {[%clk 0:02:59]}  Bg6 {[%clk 0:02:55]} 7. Qb3 {[%clk 0:02:57]}  Qb6 {[%clk 0:02:54]} 8. c5 {[%clk 0:02:54]}  Qxb3 {[%clk 0:02:52]} 9. axb3 {[%clk 0:02:55]}  Nbd7 {[%clk 0:02:47]} 10. b4 {[%clk 0:02:54]}  a6 {[%clk 0:02:44]} 11. b5 {[%clk 0:02:53]}  a5 {[%clk 0:02:33]} 12. Bd2 {[%clk 0:02:45]}  Bc2 {[%clk 0:02:16]} 13. bxc6 {[%clk 0:02:37]}  bxc6 {[%clk 0:02:15]} 14. Na4 {[%clk 0:02:27]}  Ne4 {[%clk 0:01:21]} 15. Nf3 {[%clk 0:02:20]}  Nxd2 {[%clk 0:01:17]} 16. Kxd2 {[%clk 0:02:19]}  Bxa4 {[%clk 0:01:07]} 17. Rxa4 {[%clk 0:02:18]}  e5 {[%clk 0:01:07]} 18. Be2 {[%clk 0:01:58]}  e4 {[%clk 0:00:35]} 19. Ne1 {[%clk 0:01:52]}  Be7 {[%clk 0:00:32]} 20. Nc2 {[%clk 0:01:51]}  O-O {[%clk 0:00:24]} 21. Rha1 {[%clk 0:01:49]}  Rab8 {[%clk 0:00:17]} 22. Kc3 {[%clk 0:01:47]}  Bd8 {[%clk 0:00:17]} 23. f3 {[%clk 0:01:28]}  f5 {[%clk 0:00:17]} 24. fxe4 {[%clk 0:01:28]}  fxe4 {[%clk 0:00:17]} 25. Bg4 {[%clk 0:01:27]}  Nf6 {[%clk 0:00:16]} 26. Be6+ {[%clk 0:01:28]}  Kh8 {[%clk 0:00:17]} 27. Rxa5 {[%clk 0:01:20]}  Bxa5+ {[%clk 0:00:16]} 28. Rxa5 {[%clk 0:01:21]}  Rfe8 {[%clk 0:00:16]} 29. Bh3 {[%clk 0:01:19]}  g5 {[%clk 0:00:16]} 30. g3 {[%clk 0:01:19]}  g4 {[%clk 0:00:16]} 31. Bf1 {[%clk 0:01:19]}  Rf8 {[%clk 0:00:15]} 32. Ba6 {[%clk 0:01:09]}  Nd7 {[%clk 0:00:13]} 33. b4 {[%clk 0:01:09]}  Rf3 {[%clk 0:00:13]} 34. b5 {[%clk 0:01:08]}  cxb5 {[%clk 0:00:13]} 35. c6 {[%clk 0:01:08]}  Nb6 {[%clk 0:00:12]} 36. Kb4 {[%clk 0:01:04]}  Nc4 {[%clk 0:00:09]} 37. Rxb5 {[%clk 0:01:04]}  Rxb5+ {[%clk 0:00:07]} 38. Bxb5 {[%clk 0:01:02]}  Nd6 {[%clk 0:00:06]} 39. Ba6 {[%clk 0:01:03]}  Rf2 {[%clk 0:00:05]} 40. Na3 {[%clk 0:01:02]}  Rb2+ {[%clk 0:00:05]} 41. Kc5 {[%clk 0:01:02]}  Ne8 {[%clk 0:00:05]} 42. Kxd5 {[%clk 0:01:02]}  Ra2 {[%clk 0:00:04]} 43. Nb5 {[%clk 0:00:58]}  Rxa6 {[%clk 0:00:04]} 44. c7 {[%clk 0:00:58]}  Nxc7+ {[%clk 0:00:04]} 45. Nxc7 {[%clk 0:00:58]}  Ra5+ {[%clk 0:00:05]} 46. Kxe4 {[%clk 0:00:58]}  Ra7 {[%clk 0:00:04]} 47. Ne6 {[%clk 0:00:58]}  h5 {[%clk 0:00:04]} 48. d5 {[%clk 0:00:58]}  Kg8 {[%clk 0:00:04]} 49. Ke5 {[%clk 0:00:58]}  Kf7 {[%clk 0:00:04]} 50. e4 {[%clk 0:00:58]}  Ra2 {[%clk 0:00:04]} 51. d6 {[%clk 0:00:56]}  Rxh2 {[%clk 0:00:04]} 52. d7 {[%clk 0:00:56]}  Rd2 {[%clk 0:00:03]} 53. d8=Q {[%clk 0:00:55]}  Rxd8 {[%clk 0:00:04]} 54. Nxd8+ {[%clk 0:00:56]}  Ke7 {[%clk 0:00:03]} 55. Nc6+ {[%clk 0:00:56]}  Kd7 {[%clk 0:00:03]} 56. Nd4 {[%clk 0:00:56]}  h4 {[%clk 0:00:02]} 57. gxh4 {[%clk 0:00:56]}  g3 {[%clk 0:00:02]} 58. Ne2 {[%clk 0:00:55]}  g2 {[%clk 0:00:02]} 59. Ng1 {[%clk 0:00:55]}  Ke7 {[%clk 0:00:02]} 60. h5 {[%clk 0:00:56]}  Kf7 {[%clk 0:00:02]} 61. Kf5 {[%clk 0:00:56]}  Kg7 {[%clk 0:00:03]} 62. e5 {[%clk 0:00:57]}  Kf7 {[%clk 0:00:03]} 63. e6+ {[%clk 0:00:58]}  Ke7 {[%clk 0:00:04]} 64. Ke5 {[%clk 0:00:58]}  Kf8 {[%clk 0:00:05]} 65. Kf6 {[%clk 0:00:58]}  Ke8 {[%clk 0:00:05]} 66. e7 {[%clk 0:00:58]}  Kd7 {[%clk 0:00:05]} 67. Kf7 {[%clk 0:00:59]}  Kd6 {[%clk 0:00:06]} 68. h6 {[%clk 0:00:59]}  Ke5 {[%clk 0:00:07]} 69. h7 {[%clk 0:00:59]}  Kf5 {[%clk 0:00:08]} 70. h8=B {[%clk 0:00:59]}  Kf4 {[%clk 0:00:09]} 71. Kg6 {[%clk 0:00:55]}  Ke4 {[%clk 0:00:10]} 72. Kg5 {[%clk 0:00:54]}  Ke3 {[%clk 0:00:11]} 73. Kg4 {[%clk 0:00:55]}  Kf2 {[%clk 0:00:11]} 74. Nh3+ {[%clk 0:00:54]}  Kf1 {[%clk 0:00:11]} 75. Kg3 {[%clk 0:00:49]}  g1=Q+ {[%clk 0:00:11]} 76. Nxg1 {[%clk 0:00:49]}  Kxg1 {[%clk 0:00:12]} 77. e8=N {[%clk 0:00:48]}  Kf1 {[%clk 0:00:12]} 78. Kf3 {[%clk 0:00:47]}  Ke1 {[%clk 0:00:12]} 79. Ke3 {[%clk 0:00:47]}  Kf1 {[%clk 0:00:11]} 80. Be5 {[%clk 0:00:44]}  Kg2 {[%clk 0:00:11]} 81. Nf6 {[%clk 0:00:45]}  Kh3 {[%clk 0:00:11]} 82. Kf3 {[%clk 0:00:40]}  Kh4 {[%clk 0:00:10]} 83. Bf4 {[%clk 0:00:36]}  Kh3 {[%clk 0:00:10]} 84. Bg5 {[%clk 0:00:36]}  Kh2 {[%clk 0:00:09]} 85. Ng4+ {[%clk 0:00:34]}  Kg1 {[%clk 0:00:09]} 86. Ne5 {[%clk 0:00:31]}  Kf1 {[%clk 0:00:08]} 87. Bd2 {[%clk 0:00:29]}  Kg1 {[%clk 0:00:08]} 88. Bf4 {[%clk 0:00:28]}  Kf1 {[%clk 0:00:08]} 89. Bh2 {[%clk 0:00:20]}  Ke1 {[%clk 0:00:08]} 90. Nc4 {[%clk 0:00:15]}  Kd1 {[%clk 0:00:06]} 91. Ke3 {[%clk 0:00:15]}  Kc2 {[%clk 0:00:06]} 92. Bg3 {[%clk 0:00:14]}  Kc3 {[%clk 0:00:06]} 93. Ne5 {[%clk 0:00:15]}  Kb4 {[%clk 0:00:06]} 94. Kd4 {[%clk 0:00:15]}  Kb5 {[%clk 0:00:06]} 95. Kd5 {[%clk 0:00:15]}  Kb6 {[%clk 0:00:05]} 96. Bf2+ {[%clk 0:00:14]}  Kc7 {[%clk 0:00:05]} 97. Bc5 {[%clk 0:00:15]}  Kb7 {[%clk 0:00:04]} 98. Nc4 {[%clk 0:00:13]}  Kc7 {[%clk 0:00:04]} 99. Bd6+ {[%clk 0:00:14]}  Kd7 {[%clk 0:00:04]} 100. Ne5+ {[%clk 0:00:14]}  Ke8 {[%clk 0:00:03]} 101. Ke6 {[%clk 0:00:14]}  Kd8 {[%clk 0:00:04]} 102. Nc4 {[%clk 0:00:13]}  Kc8 {[%clk 0:00:04]} 103. Na5 {[%clk 0:00:13]}  Kd8 {[%clk 0:00:03]} 104. Ke5 {[%clk 0:00:13]}  Kd7 {[%clk 0:00:04]} 105. Kd5 {[%clk 0:00:13]}  Ke8 {[%clk 0:00:04]} 106. Ke6 {[%clk 0:00:13]}  Kd8 {[%clk 0:00:04]} 107. Nc4 {[%clk 0:00:13]}  Kc8 {[%clk 0:00:04]} 108. Ne5 {[%clk 0:00:13]}  Kb7 {[%clk 0:00:04]} 109. Kd5 {[%clk 0:00:13]}  Kb6 {[%clk 0:00:04]} 110. Bc5+ {[%clk 0:00:12]}  Kb7 {[%clk 0:00:04]} 111. Kd6 {[%clk 0:00:11]}  Ka6 {[%clk 0:00:04]} 112. Nc4 {[%clk 0:00:10]}  Kb5 {[%clk 0:00:04]} 113. Kd5 {[%clk 0:00:10]}  Ka6 {[%clk 0:00:03]} 114. Nd6 {[%clk 0:00:08]}  Ka5 {[%clk 0:00:02]} 115. Kc4 {[%clk 0:00:07]}  Ka6 {[%clk 0:00:02]} 116. Bd4 {[%clk 0:00:05]}  Ka5 {[%clk 0:00:01]} 117. Kc5 {[%clk 0:00:04]}  Ka6 {[%clk 0:00:01]} 118. Kc6 {[%clk 0:00:04]}  Ka5 {[%clk 0:00:01]} 119. Bc3+ {[%clk 0:00:05]}  Ka4 {[%clk 0:00:01]} 120. Kc5 {[%clk 0:00:05]}  Kb3 {[%clk 0:00:02]} 121. Kd4 {[%clk 0:00:05]}  Kc2 {[%clk 0:00:02]} 122. Kc4 {[%clk 0:00:06]}  Kd1 {[%clk 0:00:02]} 123. Kd3 {[%clk 0:00:06]}  Kc1 {[%clk 0:00:02]} 124. Nc4 {[%clk 0:00:06]}  Kd1 {[%clk 0:00:03]} 125. Na3 {[%clk 0:00:03]}  Kc1 {[%clk 0:00:02]} 126. Bb4 {[%clk 0:00:03]}  Kd1 {[%clk 0:00:03]} 127. Nc4 {[%clk 0:00:03]} 1/2-1/2


[Site "https://www.chess.com"]